Workbook

Sheet Sheet1
A1: 表二
A2: 随州市2018年一般公共预算支出表
C3: 单位：万元
A4: 项目 | B4: 预算数 | C4: 备注
A5: 一、一般公共服务 | B5: =B6+B18+B27+B39+B51+B62+B73+B85+B94+B104+B119+B128+B139+B151+B161+B174+B181+B188+B197+B203+B210+B218+B225+B231+B237+B243+B249+B255 -> 176322
A6: 人大事务 | B6: =SUM(B7:B17) -> 2517
A7: 行政运行 | B7: 1735
A8: 一般行政管理事务 | B8: 257
A9: 机关服务 | B9: 100
A10: 人大会议 | B10: 79
A11: 人大立法 | B11: 5
A12: 人大监督 | B12: 159
A13: 人大代表履职能力提升 | B13: 6
A14: 代表工作 | B14: 148
A15: 人大信访工作 | B15: 3
A16: 事业运行 | B16: 0
A17: 其他人大事务支出 | B17: 25
A18: 政协事务 | B18: =SUM(B19:B26) -> 2332
A19: 行政运行 | B19: 1800
A20: 一般行政管理事务 | B20: 236
A21: 机关服务 | B21: 45
A22: 政协会议 | B22: 112
A23: 委员视察 | B23: 51
A24: 参政议政 | B24: 59
A25: 事业运行 | B25: 0
A26: 其他政协事务支出 | B26: 29
A27: 政府办公厅(室)及相关机构事务 | B27: =SUM(B28:B38) -> 87708
A28: 行政运行 | B28: 62830
A29: 一般行政管理事务 | B29: 3305
A30: 机关服务 | B30: 647
A31: 专项服务 | B31: 506
A32: 专项业务活动 | B32: 2047
A33: 政务公开审批 | B33: 398
A34: 法制建设 | B34: 308
A35: 信访事务 | B35: 788
A36: 参事事务 | B36: 0
A37: 事业运行 | B37: 13598
A38: 其他政府办公厅（室）及相关机构事务支出 | B38: 3281
A39: 发展与改革事务 | B39: =SUM(B40:B50) -> 4125
A40: 行政运行 | B40: 1220
A41: 一般行政管理事务 | B41: 117
A42: 机关服务 | B42: 0
A43: 战略规划与实施 | B43: 0
A44: 日常经济运行调节 | B44: 0
A45: 社会事业发展规划 | B45: 50
A46: 经济体制改革研究 | B46: 0
A47: 物价管理 | B47: 1298
A48: 应对气象变化管理事务 | B48: 0
A49: 事业运行 | B49: 22
A50: 其他发展与改革事务支出 | B50: 1418
A51: 统计信息事务 | B51: =SUM(B52:B61) -> 1166
A52: 行政运行 | B52: 611
A53: 一般行政管理事务 | B53: 12
A54: 机关服务 | B54: 0
A55: 信息事务 | B55: 0
A56: 专项统计业务 | B56: 240
A57: 统计管理 | B57: 0
A58: 专项普查活动 | B58: 195
A59: 统计抽样调查 | B59: 0
A60: 事业运行 | B60: 53
A61: 其他统计信息事务支出 | B61: 55
A62: 财政事务 | B62: =SUM(B63:B72) -> 16592
A63: 行政运行 | B63: 7614
A64: 一般行政管理事务 | B64: 1072
A65: 机关服务 | B65: 0
A66: 预算改革业务 | B66: 393
A67: 财政国库业务 | B67: 275
A68: 财政监察 | B68: 44
A69: 信息化建设 | B69: 329
A70: 财政委托业务支出 | B70: 79
A71: 事业运行 | B71: 6030
A72: 其他财政事务支出 | B72: 756
A73: 税收事务 | B73: =SUM(B74:B84) -> 18055
A74: 行政运行 | B74: 8350
A75: 一般行政管理事务 | B75: 0
A76: 机关服务 | B76: 0
A77: 税务办案 | B77: 0
A78: 税务登记证及发票管理 | B78: 0
A79: 代扣代收代征税款手续费 | B79: 7225
A80: 税务宣传 | B80: 0
A81: 协税护税 | B81: 0
A82: 信息化建设 | B82: 0
A83: 事业运行 | B83: 0
A84: 其他税收事务支出 | B84: 2480
A85: 审计事务 | B85: =SUM(B86:B93) -> 2818
A86: 行政运行 | B86: 1402
A87: 一般行政管理事务 | B87: 30
A88: 机关服务 | B88: 0
A89: 审计业务 | B89: 269
A90: 审计管理 | B90: 0
A91: 信息化建设 | B91: 4
A92: 事业运行 | B92: 728
A93: 其他审计事务支出 | B93: 385
A94: 海关事务 | B94: =SUM(B95:B103) -> 0
A95: 行政运行 | B95: 0
A96: 一般行政管理事务 | B96: 0
A97: 机关服务 | B97: 0
A98: 收费业务 | B98: 0
A99: 缉私办案 | B99: 0
A100: 口岸电子执法系统建设与维护 | B100: 0
A101: 信息化建设 | B101: 0
A102: 事业运行 | B102: 0
A103: 其他海关事务支出 | B103: 0
A104: 人力资源事务 | B104: =SUM(B105:B118) -> 1475
A105: 行政运行 | B105: 342
A106: 一般行政管理事务 | B106: 14
A107: 机关服务 | B107: 0
A108: 政府特殊津贴 | B108: 0
A109: 资助留学回国人员 | B109: 0
A110: 军队转业干部安置 | B110: 25
A111: 博士后日常经费 | B111: 0
A112: 引进人才费用 | B112: 750
A113: 公务员考核 | B113: 15
A114: 公务员履职能力提升 | B114: 0
A115: 公务员招考 | B115: 2
A116: 公务员综合管理 | B116: 7
A117: 事业运行 | B117: 0
A118: 其他人力资源事务支出 | B118: 320
A119: 纪检监察事务 | B119: =SUM(B120:B127) -> 6291
A120: 行政运行 | B120: 2725
A121: 一般行政管理事务 | B121: 1009
A122: 机关服务 | B122: 0
A123: 大案要案查处 | B123: 1263
A124: 派驻派出机构 | B124: 326
A125: 中央巡视 | B125: 0
A126: 事业运行 | B126: 210
A127: 其他纪检监察事务支出 | B127: 758
A128: 商贸事务 | B128: =SUM(B129:B138) -> 1939
A129: 行政运行 | B129: 796
A130: 一般行政管理事务 | B130: 0
A131: 机关服务 | B131: 0
A132: 对外贸易管理 | B132: 20
A133: 国际经济合作 | B133: 0
A134: 外资管理 | B134: 0
A135: 国内贸易管理 | B135: 200
A136: 招商引资 | B136: 923
A137: 事业运行 | B137: 0
A138: 其他商贸事务支出 | B138: 0
A139: 知识产权事务 | B139: =SUM(B140:B150) -> 24
A140: 行政运行 | B140: 0
A141: 一般行政管理事务 | B141: 0
A142: 机关服务 | B142: 0
A143: 专利审批 | B143: 0
A144: 国家知识产权战略 | B144: 0
A145: 专利试点和产业化推进 | B145: 0
A146: 专利执法 | B146: 0
A147: 国际组织专项活动 | B147: 0
A148: 知识产权宏观管理 | B148: 0
A149: 事业运行 | B149: 0
A150: 其他知识产权事务支出 | B150: 24
A151: 工商行政管理事务 | B151: =SUM(B152:B160) -> 8120
A152: 行政运行 | B152: 7235
A153: 一般行政管理事务 | B153: 474
A154: 机关服务 | B154: 0
A155: 工商行政管理专项 | B155: 70
A156: 执法办案专项 | B156: 145
A157: 消费者权益保护 | B157: 106
A158: 信息化建设 | B158: 0
A159: 事业运行 | B159: 0
A160: 其他工商行政管理事务支出 | B160: 90
A161: 质量技术监督与检验检疫事务 | B161: =SUM(B162:B173) -> 2442
A162: 行政运行 | B162: 1725
A163: 一般行政管理事务 | B163: 0
A164: 机关服务 | B164: 0
A165: 出入境检验检疫行政执法和业务管理 | B165: 90
A166: 出入境检验检疫技术支持 | B166: 0
A167: 质量技术监督行政执法及业务管理 | B167: 392
A168: 质量技术监督技术支持 | B168: 0
A169: 认证认可监督管理 | B169: 14
A170: 标准化管理 | B170: 1
A171: 信息化建设 | B171: 0
A172: 事业运行 | B172: 76
A173: 其他质量技术监督与检验检疫事务支出 | B173: 144
A174: 民族事务 | B174: =SUM(B175:B180) -> 269
A175: 行政运行 | B175: 119
A176: 一般行政管理事务 | B176: 90
A177: 机关服务 | B177: 0
A178: 民族工作专项 | B178: 46
A179: 事业运行 | B179: 14
A180: 其他民族事务支出 | B180: 0
A181: 宗教事务 | B181: =SUM(B182:B187) -> 71
A182: 行政运行 | B182: 55
A183: 一般行政管理事务 | B183: 0
A184: 机关服务 | B184: 0
A185: 宗教工作专项 | B185: 5
A186: 事业运行 | B186: 0
A187: 其他宗教事务支出 | B187: 11
A188: 港澳台侨事务 | B188: =SUM(B189:B196) -> 132
A189: 行政运行 | B189: 82
A190: 一般行政管理事务 | B190: 20
A191: 机关服务 | B191: 0
A192: 港澳事务 | B192: 0
A193: 台湾事务 | B193: 30
A194: 华侨事务 | B194: 0
A195: 事业运行 | B195: 0
A196: 其他港澳台侨事务支出 | B196: 0
A197: 档案事务 | B197: =SUM(B198:B202) -> 929
A198: 行政运行 | B198: 527
A199: 一般行政管理事务 | B199: 220
A200: 机关服务 | B200: 0
... 1112 more rows

Sheet Sheet2

Sheet Sheet3
